bitfinex-derivatives/quotes_ETHF0:USTF0_20250824
["timestamp","ask_amount","ask_price","bid_price","bid_amount"]
[1756005286372,1.1024,4763.8,4763.7,1.52128614]
[1756005286571,1.3313,4763.8,4763.7,0.63758614]
[1756005286975,1.3313,4763.8,4763.7,0.94108614]
[1756005287372,1.3313,4763.8,4763.7,1.52128614]
[1756005288471,1.3313,4763.8,4763.7,0.56748614]
[1756005288672,0.9562,4763.0,4762.9,0.2387]
[1756005288882,1.3313,4763.0,4762.9,0.2387]
[1756005289377,1.3313,4763.0,4762.9,0.799]
[1756005289768,1.3313,4763.0,4762.9,0.9489]
[1756005289971,1.3313,4763.0,4762.9,1.3424]
[1756005290681,1.3313,4762.9,4762.8,3.4465]
[1756005290971,0.5177,4762.4,4762.3,4.73159]
[1756005291178,1.3313,4762.4,4762.3,4.73159]
[1756005291568,1.3313,4762.4,4762.3,4.97029]
[1756005293277,1.0979,4762.4,4762.3,4.97029]
[1756005293482,1.3313,4762.4,4762.3,4.97029]
[1756005295881,0.869,4762.4,4762.3,4.97029]
[1756005296079,0.7466,4762.9,4762.8,0.96345]
[1756005296376,0.5177,4762.9,4762.8,1.76245]
[1756005296578,1.0979,4762.9,4762.8,1.3424]
[1756005296775,0.8136,4762.8,4762.6,0.4587]
[1756005296970,1.3313,4762.7,4762.6,0.4587]
[1756005297379,1.3313,4762.7,4762.6,0.6086]
[1756005297981,1.3313,4762.7,4762.6,1.3424]
[1756005298178,1.3313,4762.7,4762.6,0.6086]
[1756005298484,1.3313,4762.7,4762.6,1.3424]
[1756005298980,1.3313,4762.7,4762.6,1.0021]
[1756005299377,1.3313,4762.7,4762.6,0.2387]
[1756005299579,0.8136,4762.6,4762.4,0.2387]
[1756005299774,1.3313,4762.4,4761.9,0.5603]
[1756005299978,0.5177,4762.1,4761.9,0.22]
[1756005300281,1.3313,4761.8,4761.7,1.3424]
[1756005301573,0.3715,4761.5,4761.2,3.2078]
[1756005301773,1.3313,4761.3,4761.2,3.2078]
[1756005301978,1.3313,4760.9,4760.8,0.2387]
[1756005302179,3.2078,4761.3,4760.3,0.42027]
[1756005302180,0.8136,4760.8,4760.6,0.2387]
[1756005302375,1.3313,4760.7,4760.6,0.5235]
[1756005302581,1.3313,4760.7,4760.6,0.3035]
[1756005302782,0.5177,4760.5,4760.4,0.3699]
[1756005302978,1.3313,4760.5,4760.4,0.3699]
[1756005303176,0.5177,4760.5,4760.4,0.5422]
[1756005303584,51.24927,4762.7,4760.9,0.42021]
[1756005303585,0.5294,4761.0,4760.9,0.42021]
[1756005303780,0.1486,4761.3,4761.2,1.75709]
[1756005303982,3.2078,4761.8,4761.6,0.96576]
[1756005304287,1.3181,4762.6,4762.5,1.40658]
[1756005304785,0.3705,4762.6,4762.5,1.75698]
[1756005304981,1.3181,4763.0,4762.9,1.75694]
[1756005305185,0.3298,4762.8,4762.0,0.2183]
[1756005305386,1.0499,4763.9,4761.8,0.42014]
[1756005305387,1.3181,4762.1,4761.8,0.42014]
[1756005305688,3.2078,4762.6,4761.7,0.3504]
[1756005305689,1.3181,4761.8,4761.7,0.42014]
[1756005306079,1.3181,4761.8,4761.7,1.75704]
[1756005306281,0.7146,4762.2,4762.1,0.1484]
[1756005306481,0.3705,4762.2,4762.1,1.75701]
[1756005306677,1.3181,4762.2,4762.1,0.5893]
[1756005306877,0.5294,4761.8,4761.7,1.16935]
[1756005307083,0.5294,4761.8,4761.7,0.95105]
[1756005307084,1.3181,4761.8,4761.7,0.95105]
[1756005307283,1.3181,4761.8,4761.7,1.18835]
[1756005307483,0.2227,4761.4,4761.1,0.2226]
[1756005307683,0.5294,4761.2,4761.1,0.371]
[1756005307887,1.3181,4761.2,4761.1,0.371]
[1756005308186,1.3181,4761.2,4761.1,0.5309]
[1756005308487,1.3181,4761.2,4761.1,0.9865]
[1756005308686,1.0954,4761.2,4761.1,1.3369]
[1756005309384,3.2078,4762.0,4761.6,1.3369]
[1756005309587,3.2078,4762.0,4761.9,1.75703]
[1756005309784,0.3705,4762.6,4762.5,1.75697]
[1756005310092,1.0954,4762.9,4762.8,1.75695]
[1756005312284,0.8592,4762.9,4762.8,1.75695]
[1756005312589,0.3705,4762.9,4762.8,1.75695]
[1756005313284,3.7372,4763.2,4763.1,0.96563]
[1756005313593,4.067,4763.2,4763.1,1.75693]
[1756005313787,4.5259,4763.2,4763.1,1.40653]
[1756005314288,4.5259,4763.2,4763.1,0.95093]
[1756005315287,4.3032,4763.2,4763.1,1.75693]
[1756005315488,0.8592,4763.2,4763.1,1.75693]
[1756005315686,0.5294,4763.2,4763.1,1.75693]
[1756005316294,0.8592,4763.2,4763.1,1.75693]
[1756005317387,0.7664,4763.6,4763.5,0.41999]
[1756005317592,0.9883,4763.6,4763.5,1.75689]
[1756005317792,1.3181,4763.6,4763.5,1.75689]
[1756005319892,1.0954,4763.6,4763.5,1.75689]
[1756005320688,0.5294,4762.7,4762.6,1.18826]
[1756005320885,1.3181,4762.7,4762.6,1.18826]
[1756005321286,1.3181,4762.7,4762.6,1.40656]
[1756005321482,0.8592,4762.7,4762.6,1.75696]
[1756005321693,0.9883,4763.2,4763.1,0.96562]
[1756005321891,0.7656,4763.2,4763.1,1.75692]
[1756005322293,1.0954,4763.2,4763.1,1.75692]
[1756005323392,1.3181,4763.2,4763.1,1.75692]
[1756005324496,0.3705,4763.2,4763.1,1.75692]
[1756005324696,1.0954,4763.6,4763.5,1.75689]
[1756005326490,1.3181,4763.6,4763.1,0.77042]
[1756005326692,0.5294,4763.3,4763.2,1.22756443]
[1756005326893,1.3181,4763.3,4763.2,0.26195443]
[1756005327293,1.3181,4762.8,4762.7,1.37875]
[1756005327493,1.3181,4762.8,4762.7,2.01892169]
[1756005327693,1.0954,4762.8,4762.7,2.01892169]
[1756005328395,0.7003,4763.3,4763.2,0.5456]
[1756005328597,1.3181,4763.3,4763.2,1.3369]
[1756005328794,1.0954,4763.3,4763.2,1.598866]
[1756005329498,4.067,4763.7,4763.6,1.75688]
[1756005329800,3.7372,4763.7,4763.6,2.018846]
[1756005329996,4.3032,4763.7,4763.6,2.018846]
[1756005330192,4.5259,4763.7,4763.6,2.018846]
[1756005330387,4.5259,4763.7,4763.6,1.450146]
[1756005330590,4.5259,4763.7,4763.6,0.261966]
[1756005332591,4.5259,4763.7,4763.6,0.410366]
[1756005332794,4.5259,4763.7,4763.6,0.261966]
[1756005333101,0.5294,4763.0,4762.9,0.6083]
[1756005333399,0.5437,4763.0,4762.9,1.3369]
[1756005333600,0.3075,4763.0,4762.9,1.3369]
[1756005334294,3.6008,4763.7,4763.6,0.1593]
[1756005334495,3.755,4763.7,4763.6,1.3414]
[1756005334700,4.0844,4763.7,4763.6,1.3414]
[1756005334902,4.3216,4763.7,4763.6,1.3414]
[1756005335303,4.5594,4763.7,4763.6,1.3414]
[1756005335602,4.5594,4763.7,4763.6,1.007]
[1756005335803,4.3216,4763.7,4763.6,1.3414]
[1756005336004,3.2078,4763.7,4763.6,1.3414]
[1756005336598,4.3216,4763.7,4763.6,1.3414]
[1756005336899,4.5594,4763.7,4763.6,0.7825]
[1756005337992,4.5594,4763.7,4763.6,1.3414]
[1756005338196,4.3216,4763.7,4763.6,1.3414]
[1756005338904,4.5594,4763.7,4763.6,1.3414]
[1756005339803,1.3516,4763.5,4763.4,0.2379]
[1756005339999,0.5472,4763.4,4763.0,0.42003]
[1756005340202,1.3516,4763.2,4763.1,1.1861627]
[1756005340600,0.2372,4764.4,4764.2,0.5446]
[1756005340802,0.1558,4764.4,4764.3,1.3414]
[1756005341003,0.8766,4764.4,4764.3,1.5205585]
[1756005341804,1.1138,4764.4,4764.3,1.5205585]
[1756005342003,1.3516,4764.4,4764.3,0.1791585]
[1756005342202,1.3516,4764.4,4764.0,0.41994]
[1756005342401,0.5472,4764.2,4764.1,0.96152823]
[1756005342610,1.3516,4764.2,4764.1,0.96152823]
[1756005342816,1.3516,4764.2,4764.1,1.52042823]
[1756005343500,1.3516,4764.2,4764.1,1.18602823]
[1756005343900,1.3516,4764.2,4760.2,6.0014949]
[1756005343901,1.04993,4763.8,4762.7,0.2245]
[1756005344104,22.4378,4764.7,4762.8,0.2379]
[1756005344105,0.5472,4762.9,4762.8,0.2379]
[1756005344405,0.5472,4762.9,4762.3,0.42009]
[1756005344406,0.5472,4762.4,4762.3,0.7691]
[1756005344600,1.1138,4762.4,4762.3,1.28252604]
[1756005344796,0.3064,4762.5,4762.4,0.96468]
[1756005344999,0.8766,4762.5,4762.4,1.76148]
[1756005346108,4.3216,4762.5,4762.4,0.3972]
[1756005347111,4.3216,4762.5,4762.4,1.3414]
[1756005348600,4.3216,4762.5,4762.4,1.007]
[1756005349606,4.3216,4762.5,4762.4,1.3414]
[1756005351502,4.3216,4762.5,4762.4,1.007]
[1756005353015,4.3216,4762.5,4762.4,1.3414]
[1756005354511,0.5472,4762.1,4762.0,0.6217]
[1756005354715,1.1138,4762.1,4762.0,0.80054661]
[1756005354909,1.1138,4762.1,4762.0,0.80055202]
[1756005355106,0.0977,4762.4,4761.7,0.42014]
[1756005355107,1.2115,4761.8,4761.7,0.2379]
[1756005355617,1.2115,4761.4,4761.3,0.2379]
[1756005355812,4.4193,4761.4,4761.3,0.2379]
[1756005356710,4.4193,4761.4,4761.3,0.50004056]
[1756005357414,4.4193,4761.4,4761.3,0.26214056]
[1756005359221,1.0651,4761.2,4760.9,0.65811]
[1756005359414,1.2115,4761.1,4761.0,0.49968027]
[1756005359927,1.1138,4761.1,4761.0,0.65898027]
[1756005360723,3.2078,4761.4,4761.3,1.76158]
[1756005361015,4.4193,4761.4,4761.3,0.26178027]
[1756005361321,4.4193,4761.4,4760.8,0.2379]
[1756005361322,1.2115,4760.9,4760.8,0.2379]
[1756005361513,1.2115,4760.9,4760.8,0.49965271]
[1756005362319,1.1138,4760.9,4760.8,1.26875271]
[1756005362618,1.1138,4760.9,4760.8,1.60315271]
[1756005362820,1.1138,4760.9,4760.8,1.26875271]
[1756005363013,1.1138,4760.9,4760.8,0.80569569]
[1756005363216,4.4193,4760.9,4760.8,0.26159569]
[1756005363410,4.3216,4760.9,4760.8,0.6356]
[1756005363617,3.2078,4760.9,4760.8,1.3414]
[1756005363816,0.8706,4761.2,4761.1,1.7339]
[1756005364014,3.2078,4761.7,4761.3,1.28318]
[1756005364015,0.8706,4761.4,4761.3,1.28318]
[1756005364317,1.1063,4761.4,4761.3,0.77827591]
[1756005364521,1.2033,4761.4,4761.3,0.2241]
[1756005364822,1.1063,4761.1,4761.0,0.6443]
[1756005365121,1.1063,4761.1,4761.0,0.48557349]
[1756005365622,1.1063,4761.1,4761.0,0.63307349]
[1756005365809,0.5363,4761.5,4761.4,0.79177]
[1756005366016,0.3908,4761.5,4761.4,1.73387]
[1756005366219,3.2078,4761.7,4761.6,1.73386]
[1756005366515,3.2078,4761.7,4761.6,1.99531309]
[1756005367011,4.1686,4761.7,4761.6,1.00235309]
[1756005367211,4.1686,4761.7,4761.6,0.63305309]
[1756005367212,4.3141,4761.7,4761.6,0.63305309]
[1756005367411,4.4111,4761.7,4761.6,0.26145309]
[1756005367614,4.4111,4761.7,4761.1,0.5703]
[1756005367615,1.1063,4761.2,4761.1,0.2241]
[1756005367813,1.1063,4761.2,4761.1,0.48559208]
[1756005368011,0.5363,4760.8,4760.7,0.3716]
[1756005368316,1.1063,4760.8,4760.7,1.0024109]
[1756005368618,1.1063,4760.8,4760.7,1.5752109]
[1756005369015,1.1063,4760.8,4760.7,1.2290109]
[1756005369322,1.1063,4760.8,4760.7,0.4856109]
[1756005369518,5.2033,4760.8,4760.7,0.2615109]
[1756005369721,1.1063,4760.0,4759.9,0.7919]
[1756005369926,1.1063,4760.0,4759.9,1.05342775]
[1756005370523,1.2033,4760.0,4759.9,0.48562775]
[1756005371018,1.2033,4760.0,4759.9,0.26152775]
[1756005372723,1.1063,4759.9,4759.8,0.3716]
[1756005373024,0.5363,4759.9,4759.8,1.57540478]
[1756005373218,0.3908,4759.9,4759.8,1.57540478]
[1756005373424,1.1063,4759.9,4759.8,1.57540478]
[1756005374020,1.1063,4759.9,4759.8,0.63330478]
[1756005374223,1.1063,4759.9,4759.8,1.22920478]
[1756005374423,1.1063,4759.9,4759.8,1.57540478]
[1756005375616,1.1063,4759.9,4759.8,0.85990478]
[1756005375819,1.1063,4759.9,4759.8,1.07760478]
[1756005376020,3.7441,4760.2,4760.1,0.5168]
[1756005376323,4.3141,4760.2,4760.1,1.77159478]
[1756005376525,4.3141,4760.2,4760.1,0.63330478]
[1756005376723,4.3141,4760.2,4760.0,0.42029]
[1756005376724,0.4341,4759.8,4758.6,0.2241]
[1756005377025,0.4223,4758.1,4758.0,1.73416]
[1756005377520,0.2365,4758.5,4758.4,1.73413]
[1756005377921,0.4223,4758.5,4758.4,1.73413]
[1756005378324,0.4223,4758.5,4758.4,1.3137]
[1756005378522,0.4223,4758.5,4758.4,1.73414]
[1756005378717,3.6301,4758.8,4758.7,1.3137]
[1756005379125,0.4205,4757.8,4757.5,0.2266]
[1756005379424,0.2365,4758.0,4757.9,0.7434]
[1756005379627,2.10112,4760.9,4758.4,0.5168]
[1756005379628,0.4223,4758.5,4758.4,0.5168]
[1756005379816,0.4223,4758.5,4758.4,1.3137]
[1756005380021,0.4223,4758.5,4758.4,0.5982]
[1756005380326,0.4223,4758.5,4758.4,1.3137]
[1756005380529,3.2078,4758.9,4758.6,0.42041]
[1756005380723,0.4223,4758.7,4758.6,0.7409]
[1756005380929,0.4223,4758.7,4758.6,0.94362]
[1756005381131,0.4223,4758.7,4758.6,1.38792]
[1756005381327,0.1858,4758.7,4758.6,1.73412]
[1756005381531,0.4223,4758.7,4758.6,0.7498]
[1756005381727,0.4223,4758.7,4758.6,0.9675]
[1756005381935,0.4223,4758.7,4757.7,3.2078]
[1756005381936,3.6301,4758.9,4758.8,1.3137]
[1756005382829,3.6301,4758.9,4758.8,0.9675]
[1756005383333,3.6301,4758.9,4758.8,1.3137]
[1756005383728,3.2078,4758.9,4758.8,1.3137]
[1756005383924,3.6301,4758.9,4758.8,1.3137]
[1756005384531,3.6301,4758.9,4758.8,0.9675]
[1756005385125,3.6301,4758.9,4758.8,0.5982]
[1756005385329,0.2365,4758.4,4758.0,0.4507]
[1756005385529,0.4223,4758.3,4758.2,0.2241]
[1756005385735,0.4223,4758.3,4758.2,0.9675]
[1756005386328,0.4223,4758.3,4758.2,0.2241]
[1756005387234,0.4223,4758.3,4758.2,0.5982]
[1756005387929,0.4223,4758.3,4758.2,0.7498]
[1756005388536,0.4223,4758.3,4758.2,0.9675]
[1756005390639,0.4223,4758.3,4758.2,1.3137]
[1756005391536,0.4215,4757.3,4757.2,1.3137]
[1756005392228,0.2365,4757.3,4756.9,0.42057]
[1756005392427,0.2365,4757.3,4755.9,0.2266]
[1756005392428,3.2078,4757.3,4755.9,0.2266]
[1756005392630,22.7718,4757.2,4756.2,0.7969]
[1756005392841,0.42058,4756.9,4756.3,0.4507]
[1756005393031,0.42058,4756.9,4756.8,0.5168]
[1756005393340,3.62834,4757.2,4757.1,1.3137]
[1756005393535,3.62834,4757.2,4757.1,0.4507]
[1756005393738,3.2104,4757.2,4756.7,0.2187]
[1756005393933,30.274,4757.7,4757.1,0.598]
[1756005393934,3.2078,4757.7,4757.1,0.598]
[1756005394132,3.3562,4757.7,4757.6,1.51851]
[1756005394439,3.2078,4757.7,4757.6,1.098]
[1756005394637,0.7399,4758.2,4758.1,0.96076]
[1756005394835,0.6255,4758.2,4758.1,1.098]
[1756005395139,3.2078,4758.3,4758.2,1.51846]
[1756005395336,3.3562,4758.3,4758.2,1.51846]
[1756005395643,4.3332,4758.3,4758.2,0.759]
[1756005396145,4.3332,4758.3,4758.2,0.614]
[1756005396328,4.3332,4758.3,4758.2,0.759]
[1756005396533,4.3332,4758.3,4758.2,1.3288]
[1756005396936,3.5068,4758.3,4758.2,1.3288]
[1756005397142,3.3562,4758.3,4758.2,1.3288]
[1756005397742,0.1484,4758.3,4758.2,1.3288]
[1756005397935,0.7761,4758.7,4758.6,0.5403]
[1756005398137,1.1254,4758.7,4758.6,1.3288]
[1756005398337,1.1254,4758.7,4758.6,0.9898]
[1756005398738,1.1254,4758.7,4758.6,1.3288]
[1756005399146,1.0115,4758.7,4758.6,1.3288]
[1756005399345,0.7761,4758.7,4758.6,1.3288]
[1756005399846,3.2078,4759.3,4759.2,1.74917]
[1756005400345,3.3562,4759.3,4759.2,1.74917]
[1756005400545,3.5984,4759.3,4759.2,1.74917]
[1756005400845,3.2078,4759.3,4759.2,1.74917]
[1756005401234,0.1139,4760.0,4759.7,1.3288]
[1756005401235,3.2078,4759.8,4759.7,1.3288]
[1756005402146,4.3332,4759.8,4759.7,0.2187]
[1756005402347,0.299,4759.5,4759.4,1.50794]
[1756005402542,0.7761,4759.5,4759.4,1.74914]
[1756005402739,3.2078,4759.8,4759.6,0.42033]
[1756005402942,3.2078,4759.8,4759.7,1.3288]
[1756005403542,4.3332,4760.3,4760.2,0.9898]
[1756005403741,1.64225,4760.0,4758.9,3.2078]
[1756005403940,1.64225,4760.0,4757.4,2.625654]
[1756005403941,0.5339,4758.4,4758.3,0.86995]
[1756005404142,1.1254,4758.4,4758.3,0.86995]
[1756005404446,0.5915,4758.4,4758.3,0.2187]
[1756005404645,19.604,4759.1,4758.3,0.42044]
[1756005404847,0.42041,4758.8,4758.4,0.42043]
[1756005405036,0.42042,4758.7,4758.4,0.42043]
[1756005405236,3.2078,4758.7,4758.6,0.7885]
[1756005405840,4.21971,4758.7,4758.6,0.4495]
[1756005406146,4.21971,4758.7,4758.6,0.2187]
[1756005406349,3.7993,4758.7,4758.6,0.2187]
[1756005407250,3.2078,4758.7,4758.6,0.7885]
[1756005408438,3.2078,4758.7,4758.6,1.3288]
[1756005408938,4.3332,4758.7,4758.6,0.9898]
[1756005409646,4.3332,4758.7,4758.6,0.614]
[1756005409849,0.3833,4758.4,4758.3,1.3288]
[1756005410047,1.1254,4758.4,4758.3,0.2308]
[1756005410354,0.5339,4758.2,4758.1,0.145]
[1756005410548,0.1484,4758.2,4758.1,1.3288]
[1756005411449,0.6255,4758.2,4758.1,1.3288]
[1756005411650,0.7761,4758.2,4758.1,1.3288]
[1756005411846,1.1254,4758.2,4758.1,1.3288]
[1756005412041,1.1254,4758.2,4758.1,0.614]
[1756005412446,1.1254,4758.2,4758.1,0.9898]
[1756005412751,1.1254,4758.2,4758.1,1.3288]
[1756005412952,0.7761,4758.2,4758.1,1.3288]
[1756005413652,1.1254,4758.2,4758.1,1.3288]
[1756005414654,1.1254,4758.2,4758.1,0.9898]
[1756005414846,1.1254,4758.2,4758.0,0.42047]
[1756005415047,0.5339,4758.2,4758.0,0.42047]
[1756005415250,1.1254,4758.1,4758.0,1.74927]
[1756005415454,0.1484,4758.1,4758.0,1.74927]
[1756005416856,1.1254,4758.1,4758.0,1.74927]
[1756005417157,0.7761,4758.1,4758.0,1.74927]
[1756005418055,1.0115,4758.1,4758.0,1.74927]
[1756005418256,1.1254,4758.1,4758.0,1.74927]
[1756005418457,0.1484,4758.1,4758.0,1.74927]
[1756005418956,0.1484,4758.3,4758.2,0.96075]
[1756005419349,0.1484,4758.3,4758.2,1.74925]
[1756005420451,0.42042,4758.6,4758.4,1.19154]
[1756005420651,3.2078,4758.7,4758.6,1.74922]
[1756005421257,3.3562,4758.7,4758.6,1.74922]
[1756005422053,3.2078,4758.7,4758.6,1.74922]
[1756005423854,0.57997,4759.2,4759.1,1.3358]
[1756005424358,3.2078,4759.3,4758.5,3.2078]
[1756005424359,3.2078,4759.3,4759.2,1.75617]
[1756005424756,0.4013,4759.7,4759.6,0.56583]
[1756005424954,3.2078,4759.8,4759.6,1.75613]
[1756005425156,3.3674,4759.8,4759.7,1.3358]
[1756005425565,3.2078,4759.8,4759.7,1.3358]
[1756005425761,3.3674,4759.8,4759.7,1.3358]
[1756005425959,3.8453,4759.8,4759.7,1.3358]
[1756005426960,3.3674,4759.8,4759.7,1.3358]
[1756005427156,0.641,4760.2,4760.1,1.51459]
[1756005427358,3.2078,4760.3,4760.2,0.819]
[1756005427563,3.9938,4760.3,4760.2,1.3358]
[1756005428059,3.6091,4760.3,4760.2,1.3358]
[1756005428869,3.8453,4760.3,4760.2,1.3358]
[1756005429766,3.2078,4760.3,4760.2,1.3358]
[1756005429968,3.3674,4760.3,4760.2,1.3358]
[1756005430169,4.3471,4760.3,4760.2,1.3358]
[1756005430665,4.3471,4760.3,4760.2,0.9956]
[1756005430865,4.3471,4760.3,4760.2,1.3358]
[1756005432566,4.3471,4760.3,4760.1,0.42028]
[1756005432567,1.1393,4759.6,4759.5,3.7246]
[1756005432869,1.1393,4759.6,4759.5,1.75613]
[1756005434065,3.2078,4760.3,4759.1,0.3402]
[1756005434066,0.5443,4759.3,4759.1,0.3402]
[1756005434269,0.5443,4759.3,4758.0,1.05117]
[1756005434270,1.1393,4759.0,4758.9,1.3358]
[1756005440175,0.6579,4758.6,4758.5,0.857]
[1756005440480,1.1393,4758.6,4758.5,0.857]
[1756005440682,0.4013,4759.1,4758.8,0.42039]
[1756005440883,1.1393,4759.1,4759.0,1.3358]
[1756005441477,1.1393,4759.1,4759.0,0.9956]
[1756005441684,1.1393,4759.1,4759.0,0.6128]
[1756005441884,0.5443,4758.8,4758.7,1.1745]
[1756005442085,1.1393,4758.8,4758.7,1.7562]
[1756005442886,1.13445174,4758.8,4758.7,1.7562]
[1756005443293,1.13445174,4758.8,4758.7,1.3358]
[1756005444780,0.53945174,4758.8,4758.6,0.42041]
[1756005444986,1.1393,4758.4,4758.3,1.75624]
[1756005445190,1.1393,4758.4,4758.3,1.93293803]
[1756005445491,1.1393,4758.4,4758.3,1.93297403]
[1756005446787,0.786,4758.4,4758.3,1.93297403]
[1756005446984,0.1596,4758.4,4758.3,1.93297403]
[1756005447181,3.2078,4758.7,4758.6,0.42042]
[1756005447490,3.2078,4758.7,4758.6,1.75622]
[1756005448882,3.2078,4758.7,4758.6,1.93306938]
[1756005449987,1.14,4759.3,4759.2,1.75616]
[1756005450795,0.1596,4759.3,4759.2,1.3358]
[1756005451389,0.7865,4759.3,4759.2,1.3358]
[1756005451696,1.14,4759.3,4759.2,1.3358]
[1756005454297,0.1596,4759.3,4759.2,1.3358]
[1756005454502,0.242,4759.9,4759.7,0.2349]
[1756005454702,0.1584,4759.9,4759.8,1.77771]
[1756005454894,3.2078,4760.0,4759.9,0.8339]
[1756005455087,3.2078,4760.0,4759.9,1.3574]
[1756005456592,0.7613,4760.5,4760.4,0.5235]
[1756005456798,1.117,4760.5,4760.4,1.3574]
[1756005457294,1.117,4760.5,4760.4,0.7614]
[1756005457501,1.117,4760.5,4760.4,0.149]
[1756005458293,1.117,4760.5,4760.4,1.77766]
[1756005459201,3.3662,4761.1,4761.0,0.5235]
[1756005459399,0.4004,4761.4,4761.3,1.77758]
[1756005459592,3.2078,4761.7,4761.3,1.77758]
[1756005459593,0.1584,4761.6,4761.5,0.42016]
[1756005459797,0.1584,4761.6,4761.5,1.77756]
[1756005460205,0.4004,4761.6,4761.5,1.77756]
[1756005460401,3.7219,4762.2,4762.1,1.3574]
[1756005460593,4.43768889,4762.2,4762.1,1.3574]
[1756005460793,3.6082,4762.2,4762.1,1.3574]
[1756005461000,3.8406,4762.2,4762.1,1.3574]
[1756005461201,3.2078,4762.2,4762.1,1.3574]
[1756005462300,3.3662,4762.7,4762.6,1.3574]
[1756005462605,3.3662,4762.7,4762.6,1.77746]
[1756005462803,3.2078,4762.7,4762.6,1.77746]
[1756005463004,3.9893,4763.5,4763.4,0.5235]
[1756005463307,3.9893,4763.5,4763.4,1.3574]
[1756005463509,3.3662,4763.5,4763.4,1.3574]
[1756005463901,3.8406,4763.5,4763.4,1.3574]
[1756005464502,4.3248,4763.5,4763.4,1.3574]
[1756005465213,3.2078,4763.5,4763.4,1.3574]
[1756005465507,3.9893,4763.5,4763.4,1.3574]
[1756005466108,4.3248,4763.5,4763.4,1.3574]
[1756005468314,4.2111,4763.5,4763.4,1.3574]
[1756005468611,3.2078,4763.5,4763.4,1.3574]
[1756005469002,3.3662,4763.5,4763.4,1.3574]
[1756005469610,3.2078,4763.5,4763.4,1.3574]
[1756005470303,0.77566,4763.9,4763.5,0.8339]
[1756005470504,0.82036,4763.9,4763.8,0.5235]
[1756005470697,0.82036,4763.9,4763.8,1.3574]
[1756005471398,0.1584,4763.9,4763.8,1.3574]
[1756005471594,3.3215,4764.2,4763.8,1.3574]
[1756005471595,3.4799,4764.2,4764.1,0.5235]
[1756005471800,3.8406,4764.2,4764.1,1.3574]
[1756005472507,3.3662,4764.2,4764.1,1.3574]
[1756005472809,0.1584,4764.2,4764.1,1.3574]
[1756005473803,0.7359,4764.6,4764.5,1.3574]
[1756005474002,0.7815,4764.6,4764.5,1.3574]
[1756005474207,1.117,4764.6,4764.5,1.3574]
[1756005476907,0.1584,4764.6,4764.5,1.3574]
[1756005477108,3.2078,4764.7,4764.6,1.77729]
[1756005478814,0.66186,4765.0,4764.6,0.94339]
[1756005479014,0.7815,4765.0,4764.9,1.3574]
[1756005479606,3.2078,4765.2,4765.1,1.1225]
[1756005479810,0.1584,4765.9,4765.8,1.3574]
[1756005480010,0.1584,4765.9,4765.8,1.77718]
[1756005480911,0.1584,4766.5,4766.4,0.94322]
[1756005481111,0.1584,4766.5,4766.4,1.77712]
[1756005481306,0.6328,4766.5,4766.4,1.77712]
[1756005481515,3.4296,4766.6,4766.5,1.3574]
[1756005481516,3.2078,4766.6,4766.5,1.3574]
[1756005482513,0.7815,4767.0,4766.9,1.1195]
[1756005482720,3.3662,4767.3,4767.2,1.77706]
[1756005483218,3.8406,4767.3,4767.2,1.77706]
[1756005483720,3.2078,4767.3,4767.2,1.77706]
[1756005485315,0.7815,4767.9,4767.8,1.7627]
[1756005485520,3.2078,4768.0,4767.8,1.3011]
[1756005485822,3.2078,4768.0,4767.9,1.3431]
[1756005486618,4.3088,4768.0,4767.9,0.7623]
[1756005486921,0.5771,4767.9,4767.2,0.4616]
[1756005487116,0.1549,4767.4,4767.3,1.76275]
[1756005487516,0.3961,4767.4,4767.3,1.76275]
[1756005488212,0.1549,4767.4,4767.3,1.76275]
[1756005490425,3.9544,4768.0,4767.9,1.3431]
[1756005490726,3.9544,4768.0,4767.9,1.7627]
[1756005490727,0.3064,4768.0,4767.9,1.7627]
[1756005490930,1.101,4768.0,4767.9,0.5351]
[1756005491124,1.04875,4769.1,4767.9,0.5351]
[1756005491125,0.6136,4768.4,4768.3,1.76266]
[1756005491717,0.3724,4768.4,4768.3,1.76266]
[1756005491929,0.1549,4768.4,4768.3,1.76266]
[1756005492627,0.6136,4768.4,4768.3,1.76266]
[1756005492826,0.1549,4768.4,4768.3,1.76266]
[1756005493327,0.7651,4768.4,4768.3,1.76266]
[1756005493719,0.7651,4768.4,4768.3,1.3431]
[1756005493921,1.101,4768.4,4768.3,1.3431]
[1756005495429,1.101,4768.4,4768.3,0.996]
[1756005496223,1.101,4768.4,4768.3,1.3431]
[1756005496424,1.101,4768.4,4768.3,0.996]
[1756005496624,1.101,4768.4,4768.3,0.7623]
[1756005498027,0.5239,4768.4,4768.0,0.41958]
[1756005498231,1.101,4768.2,4767.7,0.4616]
[1756005498532,0.5239,4767.8,4767.5,0.3471]
[1756005498735,1.101,4767.6,4767.5,0.6071]
[1756005499033,0.5239,4767.4,4767.3,0.4551]
[1756005499231,1.101,4767.4,4767.3,1.26025282]
[1756005499431,1.101,4767.4,4767.3,0.64345282]
[1756005499627,1.101,4767.0,4766.9,0.64758]
[1756005499827,1.101,4767.0,4766.9,0.91195778]
[1756005500735,1.101,4767.0,4766.9,0.26437778]
[1756005500938,1.101,4766.4,4766.3,0.2279]
[1756005501131,1.101,4766.4,4766.3,0.26457507]
[1756005502238,1.101,4766.0,4765.9,1.3431]
[1756005502533,1.101,4766.0,4765.9,1.60803]